[Event "*** Titled Tuesday Blitz"]
[Site "Chess.com"]
[Date "2020.12.01"]
[Round "3"]
[White "Kotofeyca"]
[Black "Mazetovic"]
[Result "1-0"]
[WhiteElo "2477"]
[BlackElo "2713"]
[TimeControl "180+1"]
[EndTime "10:28:15 PST"]
[Termination "Kotofeyca won by checkmate"]

1. d4 {[%clk 0:03:00.9]} 1... Nf6 {[%clk 0:02:59.7]} 2. c4 {[%clk 0:03:01.3]}
2... g6 {[%clk 0:02:59.5]} 3. f3 {[%clk 0:03:01.7]} 3... Bg7 {[%clk 0:02:58.6]}
4. e4 {[%clk 0:03:01.6]} 4... d6 {[%clk 0:02:58.2]} 5. Nc3 {[%clk 0:03:02]} 5...
c6 {[%clk 0:02:58.6]} 6. Be3 {[%clk 0:03:02.3]} 6... a6 {[%clk 0:02:58.7]} 7.
Bd3 {[%clk 0:03:02.6]} 7... b5 {[%clk 0:02:58.5]} 8. b3 {[%clk 0:03:03.1]} 8...
Nbd7 {[%clk 0:02:53]} 9. Nge2 {[%clk 0:03:02.4]} 9... e5 {[%clk 0:02:51.5]} 10.
d5 {[%clk 0:03:02.6]} 10... cxd5 {[%clk 0:02:44.3]} 11. cxd5 {[%clk 0:03:00.6]}
11... O-O {[%clk 0:02:44.3]} 12. O-O {[%clk 0:02:59.6]} 12... Nc5 {[%clk
0:02:38.4]} 13. Bc2 {[%clk 0:02:55.1]} 13... Bd7 {[%clk 0:02:05.5]} 14. b4
{[%clk 0:02:53.8]} 14... Nb7 {[%clk 0:02:03.7]} 15. Qd2 {[%clk 0:02:47.9]} 15...
Nh5 {[%clk 0:02:00.2]} 16. a4 {[%clk 0:02:46.4]} 16... f5 {[%clk 0:01:57.5]} 17.
axb5 {[%clk 0:02:45.4]} 17... axb5 {[%clk 0:01:55.1]} 18. Bd3 {[%clk 0:02:41.3]}
18... fxe4 {[%clk 0:01:52.2]} 19. Nxe4 {[%clk 0:02:21]} 19... Nf6 {[%clk
0:01:17.3]} 20. Nxf6+ {[%clk 0:02:05.9]} 20... Qxf6 {[%clk 0:01:16.9]} 21. Bg5
{[%clk 0:01:55.3]} 21... Qf7 {[%clk 0:01:12.9]} 22. Be4 {[%clk 0:01:55.3]} 22...
Bf5 {[%clk 0:01:04.6]} 23. Ng3 {[%clk 0:01:53.4]} 23... Bd7 {[%clk 0:00:52.7]}
24. Qb2 {[%clk 0:01:46.3]} 24... Ra4 {[%clk 0:00:50.7]} 25. Ra3 {[%clk
0:01:27.3]} 25... Rfa8 {[%clk 0:00:48.4]} 26. Rfa1 {[%clk 0:01:27.8]} 26... Qe8
{[%clk 0:00:42.6]} 27. Be3 {[%clk 0:01:26.5]} 27... Qc8 {[%clk 0:00:35.2]} 28.
Ne2 {[%clk 0:01:04.8]} 28... Rxa3 {[%clk 0:00:19.9]} 29. Rxa3 {[%clk 0:01:03.9]}
29... Rxa3 {[%clk 0:00:20.1]} 30. Qxa3 {[%clk 0:01:04.8]} 30... Bf6 {[%clk
0:00:20.1]} 31. Qc3 {[%clk 0:01:00.9]} 31... Qa8 {[%clk 0:00:15.8]} 32. Qc7
{[%clk 0:00:58.6]} 32... Be8 {[%clk 0:00:15.3]} 33. Kf2 {[%clk 0:00:50.6]} 33...
Bd8 {[%clk 0:00:15.5]} 34. Qc1 {[%clk 0:00:45.4]} 34... Bd7 {[%clk 0:00:15.6]}
35. g3 {[%clk 0:00:42.8]} 35... Qa6 {[%clk 0:00:15.3]} 36. h4 {[%clk 0:00:41]}
36... Bb6 {[%clk 0:00:15]} 37. h5 {[%clk 0:00:39.4]} 37... Kf7 {[%clk
0:00:12.4]} 38. hxg6+ {[%clk 0:00:38.5]} 38... hxg6 {[%clk 0:00:12.2]} 39. Kg2
{[%clk 0:00:36.1]} 39... Qa7 {[%clk 0:00:10.9]} 40. Bxb6 {[%clk 0:00:33.6]}
40... Qxb6 {[%clk 0:00:11.3]} 41. Qh6 {[%clk 0:00:34]} 41... Qd8 {[%clk
0:00:09.9]} 42. Bxg6+ {[%clk 0:00:31.9]} 42... Ke7 {[%clk 0:00:09.2]} 43. Qg5+
{[%clk 0:00:30.2]} 43... Kf8 {[%clk 0:00:08.9]} 44. Qh6+ {[%clk 0:00:29.4]}
44... Ke7 {[%clk 0:00:09.4]} 45. Qg7# {[%clk 0:00:28.6]} 1-0

[Event "*** Titled Tuesday Blitz"]
[Site "Chess.com"]
[Date "2020.12.01"]
[Round "3"]
[White "stefy02"]
[Black "MashaFromRussia"]
[Result "0-1"]
[WhiteElo "2246"]
[BlackElo "2432"]
[TimeControl "180+1"]
[EndTime "10:28:16 PST"]
[Termination "MashaFromRussia won by resignation"]

1. e4 {[%clk 0:02:58.2]} 1... c5 {[%clk 0:02:59.9]} 2. Nf3 {[%clk 0:02:58]} 2...
Nc6 {[%clk 0:03:00.2]} 3. Bb5 {[%clk 0:02:55.3]} 3... d6 {[%clk 0:03:00.1]} 4.
d4 {[%clk 0:02:48.9]} 4... cxd4 {[%clk 0:02:59.4]} 5. Qxd4 {[%clk 0:02:47.7]}
5... a6 {[%clk 0:02:59.2]} 6. Bxc6+ {[%clk 0:02:46.6]} 6... bxc6 {[%clk
0:03:00.1]} 7. O-O {[%clk 0:02:36.3]} 7... e5 {[%clk 0:02:57.9]} 8. Qd3 {[%clk
0:02:34]} 8... Be7 {[%clk 0:02:58.2]} 9. c4 {[%clk 0:02:26.9]} 9... Nf6 {[%clk
0:02:57.3]} 10. h3 {[%clk 0:02:26.7]} 10... O-O {[%clk 0:02:56.6]} 11. Nc3
{[%clk 0:02:25.7]} 11... Qc7 {[%clk 0:02:56.5]} 12. Be3 {[%clk 0:02:24.6]} 12...
h6 {[%clk 0:02:56.7]} 13. Rfd1 {[%clk 0:02:22.7]} 13... Be6 {[%clk 0:02:55.1]}
14. b3 {[%clk 0:02:16.9]} 14... Rfd8 {[%clk 0:02:50.8]} 15. Qe2 {[%clk
0:01:52.3]} 15... d5 {[%clk 0:02:47.5]} 16. cxd5 {[%clk 0:01:31.1]} 16... cxd5
{[%clk 0:02:48.4]} 17. Rac1 {[%clk 0:01:15.2]} 17... dxe4 {[%clk 0:02:29]} 18.
Nxe4 {[%clk 0:01:11.5]} 18... Qa5 {[%clk 0:02:28.9]} 19. Nxf6+ {[%clk
0:01:06.5]} 19... Bxf6 {[%clk 0:02:29.8]} 20. Rxd8+ {[%clk 0:01:01.2]} 20...
Rxd8 {[%clk 0:02:27.7]} 21. Rc5 {[%clk 0:01:01.2]} 21... Qb4 {[%clk 0:02:10]}
22. Nxe5 {[%clk 0:00:59.3]} 22... Qe4 {[%clk 0:01:40.8]} 23. Nf3 {[%clk
0:00:43.3]} 23... Rd3 {[%clk 0:01:32]} 24. Nd2 {[%clk 0:00:36.8]} 24... Qg6
{[%clk 0:01:31.3]} 25. Kh1 {[%clk 0:00:28.1]} 25... Bd5 {[%clk 0:01:03.5]} 26.
Nf3 {[%clk 0:00:25.2]} 26... Be4 {[%clk 0:00:56.7]} 27. Rc8+ {[%clk 0:00:23.8]}
27... Kh7 {[%clk 0:00:56.6]} 28. Rc4 {[%clk 0:00:21.8]} 28... Rd5 {[%clk
0:00:50.7]} 29. Rc1 {[%clk 0:00:18.2]} 29... Rf5 {[%clk 0:00:48.9]} 30. Rg1
{[%clk 0:00:18]} 30... Bxf3 {[%clk 0:00:46.8]} 31. gxf3 {[%clk 0:00:18.2]} 31...
Qh5 {[%clk 0:00:47.4]} 32. Kh2 {[%clk 0:00:17.1]} 32... Rxf3 {[%clk 0:00:43.9]}
33. Rg3 {[%clk 0:00:16.9]} 33... Be5 {[%clk 0:00:44]} 34. Qd3+ {[%clk
0:00:12.6]} 34... g6 {[%clk 0:00:31.5]} 35. Qe4 {[%clk 0:00:11]} 35... Bxg3+
{[%clk 0:00:29]} 36. fxg3 {[%clk 0:00:11.4]} 36... Qf5 {[%clk 0:00:29.5]} 37.
Qe8 {[%clk 0:00:10.2]} 37... Qf6 {[%clk 0:00:19.1]} 38. Bd4 {[%clk 0:00:09.4]}
38... Qxd4 {[%clk 0:00:18.4]} 39. Qf8 {[%clk 0:00:05.9]} 39... Qd2+ {[%clk
0:00:17.9]} 0-1

[Event "*** Titled Tuesday Blitz"]
[Site "Chess.com"]
[Date "2020.12.01"]
[Round "3"]
[White "kirillshevchenko"]
[Black "scarabee43"]
[Result "1/2-1/2"]
[WhiteElo "2865"]
[BlackElo "2568"]
[TimeControl "180+1"]
[EndTime "10:28:17 PST"]
[Termination "Game drawn by repetition"]

1. e4 {[%clk 0:03:00.9]} 1... c5 {[%clk 0:03:00.2]} 2. Nf3 {[%clk 0:02:59.5]}
2... e6 {[%clk 0:03:00.6]} 3. c3 {[%clk 0:02:58.6]} 3... d5 {[%clk 0:02:59.7]}
4. exd5 {[%clk 0:02:58.8]} 4... Qxd5 {[%clk 0:02:58.9]} 5. d4 {[%clk 0:02:58.4]}
5... Nf6 {[%clk 0:02:57.3]} 6. Bd3 {[%clk 0:02:56]} 6... Be7 {[%clk 0:02:50.9]}
7. Be3 {[%clk 0:02:53.1]} 7... O-O {[%clk 0:02:49.7]} 8. dxc5 {[%clk 0:02:47.9]}
8... Bxc5 {[%clk 0:02:44.8]} 9. Bxh7+ {[%clk 0:02:47.4]} 9... Kxh7 {[%clk
0:02:43.1]} 10. Qxd5 {[%clk 0:02:46]} 10... Nxd5 {[%clk 0:02:43.7]} 11. Bxc5
{[%clk 0:02:46.1]} 11... Rd8 {[%clk 0:02:44]} 12. O-O {[%clk 0:02:29.7]} 12...
b6 {[%clk 0:02:43.3]} 13. Bd4 {[%clk 0:02:26.1]} 13... Ba6 {[%clk 0:02:43.7]}
14. Re1 {[%clk 0:02:16.5]} 14... Nc6 {[%clk 0:02:42.4]} 15. g3 {[%clk
0:02:08.6]} 15... Ndb4 {[%clk 0:02:30.5]} 16. Bxb6 {[%clk 0:01:17.2]} 16... axb6
{[%clk 0:02:21]} 17. cxb4 {[%clk 0:01:17.4]} 17... Nxb4 {[%clk 0:02:20.5]} 18.
Na3 {[%clk 0:01:16.6]} 18... Nd3 {[%clk 0:02:10.8]} 19. Re2 {[%clk 0:01:16.4]}
19... Bb7 {[%clk 0:01:56]} 20. Ne5 {[%clk 0:01:03.3]} 20... Nxe5 {[%clk
0:01:38.3]} 21. Rxe5 {[%clk 0:01:03.2]} 21... Rd2 {[%clk 0:01:36.2]} 22. Rb1
{[%clk 0:00:42.3]} 22... Rad8 {[%clk 0:01:33]} 23. Nc4 {[%clk 0:00:41]} 23...
Rd1+ {[%clk 0:01:32.4]} 24. Re1 {[%clk 0:00:40.9]} 24... Rxb1 {[%clk 0:01:27.4]}
25. Rxb1 {[%clk 0:00:41]} 25... b5 {[%clk 0:01:28]} 26. Ne3 {[%clk 0:00:23.3]}
26... Rd2 {[%clk 0:01:26.7]} 27. a3 {[%clk 0:00:20.5]} 27... Be4 {[%clk
0:01:20.6]} 28. Re1 {[%clk 0:00:15.8]} 28... Rxb2 {[%clk 0:01:20.9]} 29. Nd1
{[%clk 0:00:12.4]} 29... Rb1 {[%clk 0:01:20.4]} 30. Rxe4 {[%clk 0:00:11.4]}
30... Rxd1+ {[%clk 0:01:21]} 31. Kg2 {[%clk 0:00:12]} 31... Rd3 {[%clk
0:01:19.6]} 32. Re5 {[%clk 0:00:09.9]} 32... Rxa3 {[%clk 0:01:18.8]} 33. Rxb5
{[%clk 0:00:09.9]} 33... Kg6 {[%clk 0:01:18.6]} 34. g4 {[%clk 0:00:08.6]} 34...
f6 {[%clk 0:01:16.5]} 35. h4 {[%clk 0:00:08]} 35... e5 {[%clk 0:01:15]} 36. f3
{[%clk 0:00:06.4]} 36... Kf7 {[%clk 0:01:13.3]} 37. Rb7+ {[%clk 0:00:05.9]}
37... Kf8 {[%clk 0:01:11.1]} 38. g5 {[%clk 0:00:03.5]} 38... fxg5 {[%clk
0:01:03.3]} 39. hxg5 {[%clk 0:00:03.6]} 39... Ra4 {[%clk 0:01:00.6]} 40. Kg3
{[%clk 0:00:03.3]} 40... Rf4 {[%clk 0:00:53.4]} 41. Rb5 {[%clk 0:00:02.9]} 41...
Rf5 {[%clk 0:00:53.8]} 42. Kg4 {[%clk 0:00:02.7]} 42... g6 {[%clk 0:00:54.3]}
43. Rb8+ {[%clk 0:00:01.8]} 43... Kf7 {[%clk 0:00:53.1]} 44. Rb7+ {[%clk
0:00:02.3]} 44... Kf8 {[%clk 0:00:53]} 45. Rb6 {[%clk 0:00:02.4]} 45... Kf7
{[%clk 0:00:48.9]} 46. Rc6 {[%clk 0:00:02.7]} 46... Rf4+ {[%clk 0:00:48.1]} 47.
Kg3 {[%clk 0:00:03.2]} 47... Rf5 {[%clk 0:00:48.5]} 48. Rc7+ {[%clk 0:00:03.6]}
48... Kf8 {[%clk 0:00:46.2]} 49. Kg4 {[%clk 0:00:03.9]} 49... Rf4+ {[%clk
0:00:46.4]} 50. Kg3 {[%clk 0:00:04.5]} 50... Rf5 {[%clk 0:00:46.9]} 51. Kg4
{[%clk 0:00:04.9]} 51... Rf4+ {[%clk 0:00:46.8]} 52. Kg3 {[%clk 0:00:05.6]}
52... Rf5 {[%clk 0:00:47.3]} 1/2-1/2

[Event "*** Titled Tuesday Blitz"]
[Site "Chess.com"]
[Date "2020.12.01"]
[Round "3"]
[White "awesomevishesh"]
[Black "HackingKid98"]
[Result "1-0"]
[WhiteElo "2554"]
[BlackElo "2339"]
[TimeControl "180+1"]
[EndTime "10:28:19 PST"]
[Termination "awesomevishesh won on time"]

1. e4 {[%clk 0:02:53.3]} 1... c6 {[%clk 0:02:59.2]} 2. d4 {[%clk 0:02:48.6]}
2... d5 {[%clk 0:03:00]} 3. f3 {[%clk 0:02:48.9]} 3... Qb6 {[%clk 0:02:52.7]} 4.
Nc3 {[%clk 0:02:39]} 4... e6 {[%clk 0:02:41.5]} 5. Nge2 {[%clk 0:02:09.6]} 5...
Nf6 {[%clk 0:02:40.1]} 6. e5 {[%clk 0:01:36.7]} 6... Nfd7 {[%clk 0:02:38.1]} 7.
f4 {[%clk 0:01:06.2]} 7... c5 {[%clk 0:02:36.6]} 8. g3 {[%clk 0:01:03.7]} 8...
Nc6 {[%clk 0:02:29.7]} 9. Be3 {[%clk 0:00:51.7]} 9... cxd4 {[%clk 0:02:08]} 10.
Nxd4 {[%clk 0:00:49.6]} 10... Bc5 {[%clk 0:01:46.3]} 11. Nce2 {[%clk 0:00:45.8]}
11... Qxb2 {[%clk 0:01:21.6]} 12. Bg2 {[%clk 0:00:45.5]} 12... Bb4+ {[%clk
0:01:12.2]} 13. Kf2 {[%clk 0:00:44.1]} 13... Nxd4 {[%clk 0:00:58.6]} 14. Nxd4
{[%clk 0:00:42.5]} 14... Bc5 {[%clk 0:00:45.6]} 15. Qd3 {[%clk 0:00:39.2]} 15...
O-O {[%clk 0:00:19.6]} 16. Rhb1 {[%clk 0:00:37.8]} 16... Qa3 {[%clk 0:00:19.1]}
17. Rb3 {[%clk 0:00:35.4]} 17... Qa5 {[%clk 0:00:16.6]} 18. a4 {[%clk
0:00:34.3]} 18... Nb6 {[%clk 0:00:11.5]} 19. Rb5 {[%clk 0:00:32.8]} 19... Qa6
{[%clk 0:00:07.1]} 20. Rxc5 {[%clk 0:00:33]} 20... Nc4 {[%clk 0:00:07.7]} 21.
Rb5 {[%clk 0:00:26.6]} 21... Bd7 {[%clk 0:00:07.3]} 22. Rb4 {[%clk 0:00:25.1]}
22... Rfc8 {[%clk 0:00:07.3]} 23. Bf1 {[%clk 0:00:23]} 23... Rc7 {[%clk
0:00:06.8]} 24. Rab1 {[%clk 0:00:22.3]} 24... Rac8 {[%clk 0:00:06.3]} 25. c3
{[%clk 0:00:20.5]} 25... Bxa4 {[%clk 0:00:05.7]} 26. Ra1 {[%clk 0:00:15]} 26...
b5 {[%clk 0:00:05.8]} 27. Nxb5 {[%clk 0:00:06.8]} 27... Qxb5 {[%clk 0:00:05.5]}
28. Rxb5 {[%clk 0:00:06.6]} 28... Bxb5 {[%clk 0:00:06.4]} 29. Qd4 {[%clk
0:00:06.9]} 29... a6 {[%clk 0:00:03.3]} 30. Bxc4 {[%clk 0:00:06.4]} 1-0

[Event "*** Titled Tuesday Blitz"]
[Site "Chess.com"]
[Date "2020.12.01"]
[Round "3"]
[White "karinachess1"]
[Black "Matols"]
[Result "1/2-1/2"]
[WhiteElo "2483"]
[BlackElo "2231"]
[TimeControl "180+1"]
[EndTime "10:28:20 PST"]
[Termination "Game drawn by repetition"]

1. e4 {[%clk 0:03:00.9]} 1... e6 {[%clk 0:02:59.6]} 2. d4 {[%clk 0:03:00.4]}
2... d5 {[%clk 0:02:59.9]} 3. Nc3 {[%clk 0:02:59.6]} 3... Nf6 {[%clk 0:02:59]}
4. e5 {[%clk 0:02:59.8]} 4... Nfd7 {[%clk 0:02:59.2]} 5. f4 {[%clk 0:02:59.9]}
5... c5 {[%clk 0:02:59.5]} 6. Nf3 {[%clk 0:02:59.9]} 6... Nc6 {[%clk 0:02:59.6]}
7. Be3 {[%clk 0:03:00]} 7... cxd4 {[%clk 0:03:00]} 8. Nxd4 {[%clk 0:03:00]} 8...
Bc5 {[%clk 0:03:00.2]} 9. Qd2 {[%clk 0:02:59.3]} 9... O-O {[%clk 0:03:00.3]} 10.
O-O-O {[%clk 0:02:57.4]} 10... a6 {[%clk 0:03:00.5]} 11. h4 {[%clk 0:02:55.7]}
11... Bxd4 {[%clk 0:02:59.4]} 12. Bxd4 {[%clk 0:02:56.6]} 12... b5 {[%clk
0:02:59.5]} 13. h5 {[%clk 0:02:49.9]} 13... b4 {[%clk 0:02:58.8]} 14. Na4 {[%clk
0:02:40.9]} 14... a5 {[%clk 0:02:58.6]} 15. g4 {[%clk 0:02:05.9]} 15... Ba6
{[%clk 0:02:57.5]} 16. Bxa6 {[%clk 0:01:59.2]} 16... Rxa6 {[%clk 0:02:56.8]} 17.
h6 {[%clk 0:01:44]} 17... g6 {[%clk 0:02:56.2]} 18. f5 {[%clk 0:01:43.2]} 18...
Qc7 {[%clk 0:02:40.3]} 19. Bc5 {[%clk 0:01:19.1]} 19... Ncxe5 {[%clk 0:02:05.9]}
20. Bxf8 {[%clk 0:01:16.1]} 20... Nxf8 {[%clk 0:02:05.8]} 21. fxe6 {[%clk
0:01:01.3]} 21... fxe6 {[%clk 0:02:04.1]} 22. Rhf1 {[%clk 0:00:57.3]} 22... Rc6
{[%clk 0:02:02]} 23. Kb1 {[%clk 0:00:50.5]} 23... Nxg4 {[%clk 0:01:58.4]} 24.
Qe2 {[%clk 0:00:46.8]} 24... Nxh6 {[%clk 0:01:55.3]} 25. Rde1 {[%clk 0:00:41.2]}
25... Nf5 {[%clk 0:01:53.7]} 26. Qd3 {[%clk 0:00:37.3]} 26... Rc4 {[%clk
0:01:46.4]} 27. b3 {[%clk 0:00:35.6]} 27... Rc6 {[%clk 0:01:35.2]} 28. Rh1
{[%clk 0:00:30]} 28... Qg7 {[%clk 0:01:13.7]} 29. Qb5 {[%clk 0:00:25.9]} 29...
Qc7 {[%clk 0:01:10.2]} 30. Qd3 {[%clk 0:00:25.3]} 30... d4 {[%clk 0:00:57.5]}
31. Re2 {[%clk 0:00:23.6]} 31... e5 {[%clk 0:00:51.5]} 32. Reh2 {[%clk
0:00:21.2]} 32... Ne3 {[%clk 0:00:42.7]} 33. Nb2 {[%clk 0:00:21]} 33... Rc3
{[%clk 0:00:39.2]} 34. Qe4 {[%clk 0:00:21.1]} 34... Qc6 {[%clk 0:00:34]} 35.
Qxe5 {[%clk 0:00:18.4]} 35... Rxc2 {[%clk 0:00:31.9]} 36. Rxc2 {[%clk
0:00:17.1]} 36... Qxc2+ {[%clk 0:00:31.5]} 37. Ka1 {[%clk 0:00:17.6]} 37... Qc3
{[%clk 0:00:29.7]} 38. Qe7 {[%clk 0:00:15]} 38... Nc2+ {[%clk 0:00:29.5]} 39.
Kb1 {[%clk 0:00:15.4]} 39... Na3+ {[%clk 0:00:28.5]} 40. Ka1 {[%clk 0:00:15.8]}
40... d3 {[%clk 0:00:23.9]} 41. Rf1 {[%clk 0:00:14.5]} 41... Nc2+ {[%clk
0:00:22.2]} 42. Kb1 {[%clk 0:00:14.7]} 42... Na3+ {[%clk 0:00:22.2]} 43. Ka1
{[%clk 0:00:15.1]} 43... Nc2+ {[%clk 0:00:18]} 44. Kb1 {[%clk 0:00:15.4]} 44...
Na3+ {[%clk 0:00:17.4]} 45. Ka1 {[%clk 0:00:15.5]} 1/2-1/2

[Event "*** Titled Tuesday Blitz"]
[Site "Chess.com"]
[Date "2020.12.01"]
[Round "3"]
[White "Sokoloco"]
[Black "GAusal"]
[Result "1-0"]
[WhiteElo "2464"]
[BlackElo "2097"]
[TimeControl "180+1"]
[EndTime "10:28:20 PST"]
[Termination "Sokoloco won by resignation"]

1. b3 {[%clk 0:03:00.9]} 1... d5 {[%clk 0:02:58.8]} 2. Bb2 {[%clk 0:03:00.4]}
2... c5 {[%clk 0:02:55.4]} 3. e3 {[%clk 0:03:00.4]} 3... a6 {[%clk 0:02:46.7]}
4. Nf3 {[%clk 0:02:57.4]} 4... Bg4 {[%clk 0:02:42.5]} 5. Be2 {[%clk 0:02:56.4]}
5... Nc6 {[%clk 0:02:39.6]} 6. O-O {[%clk 0:02:54.5]} 6... Nf6 {[%clk
0:02:40.1]} 7. d3 {[%clk 0:02:53.1]} 7... e6 {[%clk 0:02:36.6]} 8. Ne5 {[%clk
0:02:53.2]} 8... Nxe5 {[%clk 0:02:29.8]} 9. Bxe5 {[%clk 0:02:51.8]} 9... Bxe2
{[%clk 0:02:06.1]} 10. Qxe2 {[%clk 0:02:52.7]} 10... Bd6 {[%clk 0:02:02.6]} 11.
f4 {[%clk 0:02:52.6]} 11... Bxe5 {[%clk 0:01:58.7]} 12. fxe5 {[%clk 0:02:51.9]}
12... Nd7 {[%clk 0:01:56.9]} 13. d4 {[%clk 0:02:43.5]} 13... Qb6 {[%clk
0:01:53.1]} 14. Qf2 {[%clk 0:02:39.9]} 14... O-O {[%clk 0:01:48.9]} 15. Nd2
{[%clk 0:02:39.3]} 15... cxd4 {[%clk 0:01:44.2]} 16. exd4 {[%clk 0:02:39]} 16...
f6 {[%clk 0:01:40.9]} 17. exf6 {[%clk 0:02:35.1]} 17... Nxf6 {[%clk 0:01:41]}
18. c3 {[%clk 0:02:08.8]} 18... Rac8 {[%clk 0:01:39.6]} 19. Qe3 {[%clk
0:02:06.2]} 19... Rce8 {[%clk 0:01:28.2]} 20. Rae1 {[%clk 0:01:57.9]} 20... Qd6
{[%clk 0:01:22.4]} 21. Nf3 {[%clk 0:01:56.6]} 21... Ne4 {[%clk 0:01:20.2]} 22.
Ng5 {[%clk 0:01:44.8]} 22... Nxg5 {[%clk 0:01:16]} 23. Qxg5 {[%clk 0:01:45.7]}
23... Rxf1+ {[%clk 0:01:15.3]} 24. Rxf1 {[%clk 0:01:46]} 24... Rf8 {[%clk
0:01:10.7]} 25. Re1 {[%clk 0:01:36.1]} 25... Rf6 {[%clk 0:01:04.2]} 26. Qe3
{[%clk 0:01:27.4]} 26... Kf7 {[%clk 0:01:01]} 27. g3 {[%clk 0:01:19.8]} 27... h6
{[%clk 0:00:58.6]} 28. c4 {[%clk 0:01:16]} 28... dxc4 {[%clk 0:00:57.6]} 29.
bxc4 {[%clk 0:01:15.6]} 29... g5 {[%clk 0:00:53.1]} 30. Qe4 {[%clk 0:01:03.5]}
30... Qc6 {[%clk 0:00:46.5]} 31. d5 {[%clk 0:00:49.1]} 31... Qc5+ {[%clk
0:00:38.3]} 32. Kh1 {[%clk 0:00:49.2]} 32... Qf2 {[%clk 0:00:36.6]} 33. dxe6+
{[%clk 0:00:45.3]} 33... Ke7 {[%clk 0:00:24.3]} 34. Qxb7+ {[%clk 0:00:34.3]}
34... Kf8 {[%clk 0:00:20.6]} 35. e7+ {[%clk 0:00:32.3]} 35... Kg8 {[%clk
0:00:07.3]} 36. e8=Q+ {[%clk 0:00:29.5]} 36... Rf8 {[%clk 0:00:07.5]} 37. Qd5+
{[%clk 0:00:28.3]} 37... Kg7 {[%clk 0:00:06.8]} 38. Qe7+ {[%clk 0:00:27.8]}
38... Kg6 {[%clk 0:00:05.3]} 39. Qde4+ {[%clk 0:00:26.4]} 39... Kh5 {[%clk
0:00:04.5]} 40. Qe2+ {[%clk 0:00:26.4]} 40... Rf3 {[%clk 0:00:01.3]} 1-0

[Event "*** Titled Tuesday Blitz"]
[Site "Chess.com"]
[Date "2020.12.01"]
[Round "3"]
[White "Stosk"]
[Black "alexrustemov"]
[Result "1/2-1/2"]
[WhiteElo "2379"]
[BlackElo "2635"]
[TimeControl "180+1"]
[EndTime "10:28:22 PST"]
[Termination "Game drawn - insufficient material"]

1. d4 {[%clk 0:03:00.9]} 1... d5 {[%clk 0:02:59.3]} 2. c4 {[%clk 0:03:00.3]}
2... c6 {[%clk 0:02:59.4]} 3. Nc3 {[%clk 0:02:59.7]} 3... dxc4 {[%clk
0:02:58.8]} 4. e4 {[%clk 0:02:56.6]} 4... b5 {[%clk 0:02:58.8]} 5. a4 {[%clk
0:02:52.3]} 5... b4 {[%clk 0:02:59]} 6. Na2 {[%clk 0:02:51.3]} 6... Nf6 {[%clk
0:02:58.6]} 7. e5 {[%clk 0:02:44.7]} 7... Nd5 {[%clk 0:02:59]} 8. Bxc4 {[%clk
0:02:43.9]} 8... e6 {[%clk 0:02:59.4]} 9. Nf3 {[%clk 0:02:38.9]} 9... Ba6 {[%clk
0:02:59.7]} 10. Bxa6 {[%clk 0:02:30.7]} 10... Nxa6 {[%clk 0:03:00.6]} 11. Qe2
{[%clk 0:02:24.1]} 11... Qb6 {[%clk 0:02:59.5]} 12. O-O {[%clk 0:02:19.4]} 12...
c5 {[%clk 0:02:59.7]} 13. Rd1 {[%clk 0:01:40.2]} 13... Rc8 {[%clk 0:02:49.9]}
14. Be3 {[%clk 0:01:07.3]} 14... c4 {[%clk 0:02:46.3]} 15. Rac1 {[%clk
0:01:00.2]} 15... c3 {[%clk 0:02:39]} 16. bxc3 {[%clk 0:00:36.6]} 16... bxc3
{[%clk 0:02:38.9]} 17. Bd2 {[%clk 0:00:34.6]} 17... Qb2 {[%clk 0:02:34.1]} 18.
Qxa6 {[%clk 0:00:30]} 18... Rc7 {[%clk 0:02:25.9]} 19. Nxc3 {[%clk 0:00:13.4]}
19... Nxc3 {[%clk 0:02:26.8]} 20. Bxc3 {[%clk 0:00:13.7]} 20... Qb6 {[%clk
0:02:08.2]} 21. Qxb6 {[%clk 0:00:12.5]} 21... axb6 {[%clk 0:02:09.1]} 22. a5
{[%clk 0:00:10]} 22... b5 {[%clk 0:02:00]} 23. a6 {[%clk 0:00:09.3]} 23... Ra7
{[%clk 0:01:56.5]} 24. Ra1 {[%clk 0:00:08.4]} 24... b4 {[%clk 0:01:57.1]} 25.
Rdb1 {[%clk 0:00:04.5]} 25... bxc3 {[%clk 0:01:54.8]} 26. Rb7 {[%clk 0:00:03.1]}
26... Ra8 {[%clk 0:01:18.5]} 27. a7 {[%clk 0:00:03.2]} 27... Be7 {[%clk
0:01:19]} 28. Rb8+ {[%clk 0:00:03.2]} 28... Kd7 {[%clk 0:01:19]} 29. Rxh8 {[%clk
0:00:02.8]} 29... Rxh8 {[%clk 0:01:19]} 30. a8=Q {[%clk 0:00:03]} 30... Rxa8
{[%clk 0:01:19.7]} 31. Rxa8 {[%clk 0:00:03.5]} 31... c2 {[%clk 0:01:20.6]} 32.
Ra1 {[%clk 0:00:03.8]} 32... Ba3 {[%clk 0:01:21.3]} 33. Ne1 {[%clk 0:00:03]}
33... c1=Q {[%clk 0:01:21.2]} 34. Rxc1 {[%clk 0:00:02.7]} 34... Bxc1 {[%clk
0:01:22.1]} 35. Nd3 {[%clk 0:00:02.7]} 35... Ba3 {[%clk 0:01:19.4]} 36. f4
{[%clk 0:00:02.8]} 36... Kc6 {[%clk 0:01:19.6]} 37. Kf2 {[%clk 0:00:03.3]} 37...
Kd5 {[%clk 0:01:19.8]} 38. Ke3 {[%clk 0:00:03.8]} 38... h5 {[%clk 0:01:18.6]}
39. g3 {[%clk 0:00:03.9]} 39... g6 {[%clk 0:01:18.4]} 40. h3 {[%clk 0:00:03.4]}
40... Be7 {[%clk 0:01:04.7]} 41. g4 {[%clk 0:00:03.6]} 41... Bd8 {[%clk
0:01:03.2]} 42. Nc1 {[%clk 0:00:02.2]} 42... hxg4 {[%clk 0:01:04.1]} 43. hxg4
{[%clk 0:00:01.9]} 43... Bb6 {[%clk 0:01:04.8]} 44. Ne2 {[%clk 0:00:02.3]} 44...
Kc4 {[%clk 0:00:53]} 45. Ke4 {[%clk 0:00:02.2]} 45... Ba7 {[%clk 0:00:44]} 46.
f5 {[%clk 0:00:02.6]} 46... gxf5+ {[%clk 0:00:44]} 47. gxf5 {[%clk 0:00:03.2]}
47... exf5+ {[%clk 0:00:44.6]} 48. Kxf5 {[%clk 0:00:03.4]} 48... Bxd4 {[%clk
0:00:45.3]} 49. Nxd4 {[%clk 0:00:02.9]} 49... Kxd4 {[%clk 0:00:45.9]} 50. Kf6
{[%clk 0:00:03.5]} 50... Ke4 {[%clk 0:00:44.6]} 51. Kxf7 {[%clk 0:00:03.9]}
51... Kxe5 {[%clk 0:00:45.1]} 1/2-1/2